[Event "XX Gran Hotel Bali-A 2023"]
[Site "Benidorm"]
[Date "2023.12.07"]
[Round "8.14"]
[White "Garcia Martin, Marta"]
[Black "Ibanez Aullana, Ramon"]
[Result "*"]
[ECO "C41"]
[WhiteElo "2350"]
[BlackElo "2207"]
[Annotator "RC"]
[PlyCount "26"]
[EventDate "2023.12.02"]
[EventType "swiss"]
[EventCountry "ESP"]
[SourceTitle "playchess.com"]
[Source "ChessBase"]
[SourceQuality "1"]
[TimeControl "5400+30"]

1. e4 {[%emt 0:05:46]} d6 {[%emt 0:01:54]} 2. d4 {[%emt 0:00:14]} e5 {[%emt 0:00:22]} 3. Nf3 {[%emt 0:04:11]} exd4 {[%emt 0:00:54]} 4. Nxd4 {[%emt 0:00:05]} Nf6 {[%emt 0:00:10]} 5. Nc3 {[%emt 0:00:10]} Be7 {[%emt 0:00:07]} 6. g3 {[%emt 0:02:18]} d5 {[%emt 0:00:23]} 7. e5 {[%emt 0:00:45]} Ng4 {[%emt 0:00:13]} 8. Bf4 {[%emt 0:15:41]} c6 {[%emt 0:14:43]} 9. Be2 {[%emt 0:13:05]} Nh6 {[%emt 0:09:17]} 10. Bxh6 {[%emt 0:00:57]} gxh6 {[%emt 0:00:02]} 11. O-O {[%emt 0:14:29]} Bc5 {[%emt 0:11:53]} 12. Bg4 {[%emt 0:03:40]} Na6 {[%emt 0:15:25]} 13. Bxc8 {[%emt 0:11:47]} Qxc8 {[%emt 0:00:45]} *

[Event "XX Gran Hotel Bali-A 2023"]
[Site "Benidorm"]
[Date "2023.12.07"]
[Round "8.15"]
[White "Luque Saiz, Andres"]
[Black "Roulet-Dubonnet, Emerik Vapenstad"]
[Result "*"]
[ECO "B11"]
[WhiteElo "2349"]
[BlackElo "2170"]
[Annotator "RC"]
[PlyCount "38"]
[EventDate "2023.12.02"]
[EventType "swiss"]
[EventCountry "ESP"]
[SourceTitle "playchess.com"]
[Source "ChessBase"]
[SourceQuality "1"]
[TimeControl "5400+30"]

1. e4 {[%emt 0:00:02]} c6 {[%emt 0:03:53]} 2. Nc3 {[%emt 0:00:31]} d5 {[%emt 1:27:37]} 3. Nf3 {[%emt 0:00:07]} Bg4 {[%emt 0:01:02]} 4. h3 {[%emt 0:00:15]} Bxf3 {[%emt 1:27:25]} 5. Qxf3 {[%emt 0:00:06]} e6 {[%emt 1:27:43]} 6. Be2 {[%emt 0:01:41]} Bc5 {[%emt 0:01:40]} 7. Qg3 {[%emt 0:03:06]} Bd4 {[%emt 0:09:06]} 8. O-O {[%emt 0:13:47]} Ne7 {[%emt 0:03:34]} 9. Bd3 {[%emt 0:12:46]} Nd7 {[%emt 0:04:58]} 10. Ne2 {[%emt 1:03:09]} Bf6 {[%emt 0:00:51]} 11. exd5 {[%emt 0:00:35]} cxd5 {[%emt 0:01:40]} 12. c3 {[%emt 0:01:42]} O-O {[%emt 0:01:29]} 13. Bc2 {[%emt 0:00:54]} Qb8 {[%emt 0:04:26]} 14. Qe3 {[%emt 0:06:41]} b5 {[%emt 0:01:21]} 15. d4 {[%emt 0:52:48]} Qb6 {[%emt 0:12:20]} 16. h4 {[%emt 0:13:39]} Rfc8 {[%emt 0:04:14]} 17. Qd3 {[%emt 0:04:19]} g6 {[%emt 0:01:13]} 18. Bg5 {[%emt 0:02:31]} Bxg5 {[%emt 0:02:41]} 19. hxg5 {[%emt 0:00:06]} Nf5 {[%emt 0:01:13]} *

[Event "XX Gran Hotel Bali-A 2023"]
[Site "Benidorm"]
[Date "2023.12.07"]
[Round "8.16"]
[White "Torres Sanchez, Jose"]
[Black "Gomez Dieguez, David"]
[Result "*"]
[ECO "C54"]
[WhiteElo "2196"]
[BlackElo "2303"]
[Annotator "RC"]
[PlyCount "48"]
[EventDate "2023.12.02"]
[EventType "swiss"]
[EventCountry "ESP"]
[SourceTitle "playchess.com"]
[Source "ChessBase"]
[SourceQuality "1"]
[TimeControl "5400+30"]

1. e4 {[%emt 0:00:14]} e5 {[%emt 0:00:16]} 2. Bc4 {[%emt 0:00:20]} Nf6 {[%emt 0:01:02]} 3. d3 {[%emt 0:00:35]} Nc6 {[%emt 0:00:04]} 4. Nf3 {[%emt 0:00:50]} Bc5 {[%emt 0:00:17]} 5. c3 {[%emt 0:02:19]} a6 {[%emt 0:00:06]} 6. O-O {[%emt 0:02:16]} Ba7 {[%emt 1:31:45]} 7. Re1 {[%emt 0:05:53]} d6 {[%emt 0:01:59]} 8. Be3 {[%emt 0:00:50]} Bxe3 {[%emt 0:07:12]} 9. Rxe3 {[%emt 0:00:10]} O-O {[%emt 0:00:03]} 10. d4 {[%emt 0:03:11]} exd4 {[%emt 0:06:22]} 11. cxd4 {[%emt 0:08:19]} d5 {[%emt 0:00:17]} 12. exd5 {[%emt 0:00:07]} Nxd5 {[%emt 0:00:07]} 13. Bxd5 {[%emt 0:00:17]} Qxd5 {[%emt 0:00:14]} 14. Nc3 {[%emt 0:00:36]} Qd8 {[%emt 0:02:51]} 15. d5 {[%emt 0:05:18]} Ne7 {[%emt 0:00:04]} 16. Ne5 {[%emt 0:07:32]} Nf5 {[%emt 0:04:26]} 17. Re2 {[%emt 0:06:35]} Nd6 {[%emt 0:07:56]} 18. Rc1 {[%emt 0:06:42]} Qg5 {[%emt 0:05:24]} 19. Re3 {[%emt 0:47:56]} Nf5 {[%emt 0:06:43]} 20. Re4 {[%emt 0:02:02]} Nd6 {[%emt 0:04:46]} 21. Re1 {[%emt 0:02:48]} Bh3 {[%emt 0:06:29]} 22. Qf3 {[%emt 0:00:24]} Rae8 {[%emt 0:43:54]} 23. Qg3 {[%emt 0:04:04]} Rxe5 {[%emt 0:01:25]} 24. gxh3 {[%emt 0:37:05]} Rfe8 {[%emt 0:06:38]} *

[Event "XX Gran Hotel Bali-A 2023"]
[Site "Benidorm"]
[Date "2023.12.07"]
[Round "8.17"]
[White "Granero Roca, Antonio"]
[Black "Motos Abellan, Daniel"]
[Result "*"]
[ECO "D24"]
[WhiteElo "2273"]
[BlackElo "2151"]
[Annotator "RC"]
[PlyCount "90"]
[EventDate "2023.12.02"]
[EventType "swiss"]
[EventCountry "ESP"]
[SourceTitle "playchess.com"]
[Source "ChessBase"]
[SourceQuality "1"]
[TimeControl "5400+30"]

1. Nf3 {[%emt 0:00:15]} Nf6 {[%emt 0:07:33]} 2. c4 {[%emt 0:00:27]} e6 {[%emt 0:09:45]} 3. d4 {[%emt 0:00:41]} d5 {[%emt 1:14:42]} 4. Nc3 {[%emt 0:00:57]} a6 {[%emt 0:00:47]} 5. Bg5 {[%emt 0:00:28]} dxc4 {[%emt 0:00:06]} 6. a4 {[%emt 0:00:11]} Nc6 {[%emt 0:00:04]} 7. e3 {[%emt 0:00:30]} Na5 {[%emt 0:00:46]} 8. Ne5 {[%emt 0:02:46]} Be7 {[%emt 0:04:42]} 9. Nxc4 {[%emt 0:01:43]} Nxc4 {[%emt 0:00:25]} 10. Bxc4 {[%emt 0:00:13]} O-O {[%emt 0:00:18]} 11. O-O {[%emt 0:02:10]} Bd7 {[%emt 0:00:40]} 12. Bd3 {[%emt 0:02:44]} Bc6 {[%emt 0:03:39]} 13. Qb3 {[%emt 0:02:00]} Nd5 {[%emt 0:05:34]} 14. Bxe7 {[%emt 0:02:56]} Qxe7 {[%emt 0:00:08]} 15. Rfc1 {[%emt 0:01:00]} Qg5 {[%emt 0:01:23]} 16. Ne4 {[%emt 0:01:07]} Qh6 {[%emt 0:00:57]} 17. Nc5 {[%emt 0:03:12]} Rab8 {[%emt 0:27:13]} 18. Bf1 {[%emt 0:02:23]} a5 {[%emt 0:01:19]} 19. Bb5 {[%emt 0:00:58]} Bxb5 {[%emt 0:01:15]} 20. axb5 {[%emt 0:00:58]} Rfd8 {[%emt 0:00:09]} 21. Nd3 {[%emt 0:01:58]} Nxe3 {[%emt 0:02:49]} 22. fxe3 {[%emt 0:00:27]} Qxe3+ {[%emt 0:00:04]} 23. Kh1 {[%emt 0:00:15]} Rxd4 {[%emt 0:00:07]} 24. Nc5 {[%emt 0:00:14]} Qxb3 {[%emt 0:04:23]} 25. Nxb3 {[%emt 0:00:15]} Rb4 {[%emt 0:00:02]} 26. Nxa5 {[%emt 0:00:17]} Rxb5 {[%emt 0:00:15]} 27. Nc4 {[%emt 0:00:52]} Rd8 {[%emt 0:29:29]} 28. h3 {[%emt 0:01:20]} h5 {[%emt 0:01:00]} 29. Rc2 {[%emt 0:00:09]} c6 {[%emt 0:00:50]} 30. Ra5 {[%emt 0:01:03]} Rdd5 {[%emt 0:01:11]} 31. Rxb5 {[%emt 0:00:38]} Rxb5 {[%emt 0:00:07]} 32. Nd6 {[%emt 1:11:23]} Rb4 {[%emt 0:00:21]} 33. Kg1 {[%emt 1:11:46]} Kf8 {[%emt 0:00:24]} 34. Kf2 {[%emt 1:11:01]} Ke7 {[%emt 0:00:04]} 35. Nc4 {[%emt 0:00:14]} g5 {[%emt 0:00:19]} 36. Ke3 {[%emt 0:00:20]} b6 {[%emt 0:01:13]} 37. Ne5 {[%emt 0:03:19]} Rb3+ {[%emt 0:00:02]} 38. Kd4 {[%emt 0:00:22]} c5+ {[%emt 0:00:34]} 39. Kc4 {[%emt 0:00:10]} Rb4+ {[%emt 0:01:18]} 40. Kc3 {[%emt 0:00:10]} Kf6 {[%emt 0:00:29]} 41. Nc4 {[%emt 0:00:38]} Ke7 {[%emt 0:01:29]} 42. b3 {[%emt 0:00:28]} f5 {[%emt 0:01:52]} 43. Ra2 {[%emt 0:01:36]} Kf6 {[%emt 0:00:15]} 44. Ra6 {[%emt 0:01:44]} b5 {[%emt 0:00:11]} 45. Nd6 {[%emt 0:00:08]} g4 {[%emt 0:00:51]} *

[Event "XX Gran Hotel Bali-A 2023"]
[Site "Benidorm"]
[Date "2023.12.07"]
[Round "8.18"]
[White "Ni, Viktorija"]
[Black "Escartin Lacasa, Jose"]
[Result "*"]
[ECO "D43"]
[WhiteElo "2139"]
[BlackElo "2272"]
[Annotator "RC"]
[PlyCount "38"]
[EventDate "2023.12.02"]
[EventType "swiss"]
[EventCountry "ESP"]
[SourceTitle "playchess.com"]
[Source "ChessBase"]
[SourceQuality "1"]
[TimeControl "5400+30"]

1. d4 {[%emt 0:04:39]} d5 {[%emt 0:00:07]} 2. c4 {[%emt 0:00:14]} c6 {[%emt 0:00:05]} 3. Nf3 {[%emt 0:00:17]} Nf6 {[%emt 1:31:48]} 4. Nc3 {[%emt 0:00:21]} e6 {[%emt 0:00:41]} 5. Bg5 {[%emt 0:00:59]} h6 {[%emt 0:00:19]} 6. Bh4 {[%emt 0:01:26]} dxc4 {[%emt 0:01:10]} 7. e4 {[%emt 0:01:02]} Be7 {[%emt 0:00:11]} 8. Bxf6 {[%emt 0:00:58]} Bxf6 {[%emt 0:00:10]} 9. e5 {[%emt 0:00:24]} Be7 {[%emt 0:00:15]} 10. Bxc4 {[%emt 0:00:35]} O-O {[%emt 0:05:44]} 11. Qe2 {[%emt 0:03:45]} c5 {[%emt 0:18:00]} 12. Rd1 {[%emt 1:21:50]} cxd4 {[%emt 0:06:26]} 13. Rxd4 {[%emt 0:03:45]} Qa5 {[%emt 0:01:19]} 14. Bd3 {[%emt 0:06:09]} Nd7 {[%emt 0:02:12]} 15. Bb1 {[%emt 0:08:39]} Rd8 {[%emt 1:01:02]} 16. O-O {[%emt 0:04:51]} Nf8 {[%emt 0:02:10]} 17. Rg4 {[%emt 0:06:55]} Bd7 {[%emt 0:24:34]} 18. Qe3 {[%emt 0:01:23]} Kh8 {[%emt 0:01:15]} 19. Qf4 {[%emt 0:02:41]} f5 {[%emt 0:00:41]} *

[Event "XX Gran Hotel Bali-A 2023"]
[Site "Benidorm"]
[Date "2023.12.07"]
[Round "8.19"]
[White "Kennaugh, Charles W"]
[Black "Donate Moreno, Silvia"]
[Result "*"]
[ECO "B90"]
[WhiteElo "2249"]
[BlackElo "2156"]
[Annotator "RC"]
[PlyCount "52"]
[EventDate "2023.12.02"]
[EventType "swiss"]
[EventCountry "ESP"]
[SourceTitle "playchess.com"]
[Source "ChessBase"]
[SourceQuality "1"]
[TimeControl "5400+30"]

1. e4 {[%emt 0:00:03]} c5 {[%emt 0:00:07]} 2. Nf3 {[%emt 0:00:05]} d6 {[%emt 0:00:08]} 3. d4 {[%emt 0:00:10]} cxd4 {[%emt 1:31:45]} 4. Nxd4 {[%emt 0:00:04]} Nf6 {[%emt 0:00:06]} 5. Nc3 {[%emt 0:00:04]} a6 {[%emt 0:00:05]} 6. a4 {[%emt 0:00:17]} e5 {[%emt 0:00:54]} 7. Nf3 {[%emt 1:33:17]} Be7 {[%emt 1:32:28]} 8. Bg5 {[%emt 0:00:08]} Nc6 {[%emt 1:30:02]} 9. Bxf6 {[%emt 0:04:04]} Bxf6 {[%emt 0:02:26]} 10. Nd5 {[%emt 0:00:19]} O-O {[%emt 0:00:22]} 11. Bc4 {[%emt 0:03:26]} Be6 {[%emt 0:01:29]} 12. O-O {[%emt 0:01:22]} Rc8 {[%emt 0:02:00]} 13. Qd3 {[%emt 0:06:20]} Nb4 {[%emt 0:08:15]} 14. Qb3 {[%emt 0:01:57]} Bxd5 {[%emt 0:06:21]} 15. Bxd5 {[%emt 0:05:24]} Qa5 {[%emt 0:01:03]} 16. c3 {[%emt 0:12:43]} Nxd5 {[%emt 0:00:28]} 17. exd5 {[%emt 0:00:53]} Qc7 {[%emt 0:03:19]} 18. Rfe1 {[%emt 0:04:10]} Bd8 {[%emt 0:09:43]} 19. Re4 {[%emt 0:05:03]} f5 {[%emt 0:01:46]} 20. Rb4 {[%emt 0:00:13]} Rf7 {[%emt 0:00:12]} 21. Re1 {[%emt 0:04:21]} Qd7 {[%emt 0:03:06]} 22. Nd2 {[%emt 0:03:20]} Ba5 {[%emt 0:06:31]} 23. Rc4 {[%emt 0:00:21]} Rcf8 {[%emt 0:03:29]} 24. Qc2 {[%emt 0:08:05]} g5 {[%emt 0:03:18]} 25. b4 {[%emt 0:03:32]} Bd8 {[%emt 0:02:50]} 26. f3 {[%emt 0:01:35]} Bb6+ {[%emt 0:01:30]} *

[Event "XX Gran Hotel Bali-A 2023"]
[Site "Benidorm"]
[Date "2023.12.07"]
[Round "8.20"]
[White "Patil Priyanshu"]
[Black "Carrera Perez, Francisco"]
[Result "*"]
[ECO "C01"]
[WhiteElo "1902"]
[BlackElo "2237"]
[Annotator "RC"]
[PlyCount "36"]
[EventDate "2023.12.02"]
[EventType "swiss"]
[EventCountry "ESP"]
[SourceTitle "playchess.com"]
[Source "ChessBase"]
[SourceQuality "1"]
[TimeControl "5400+30"]

1. e4 {[%emt 0:00:03]} e6 {[%emt 1:31:00]} 2. d4 {[%emt 0:00:02]} d5 {[%emt 0:00:08]} 3. Bd3 {[%emt 0:00:06]} Nf6 {[%emt 0:01:57]} 4. e5 {[%emt 0:00:01]} Nfd7 {[%emt 1:30:02]} 5. Ne2 {[%emt 0:00:04]} c5 {[%emt 0:00:54]} 6. c3 {[%emt 0:00:01]} Nc6 {[%emt 0:00:51]} 7. a3 {[%emt 0:00:02]} a5 {[%emt 0:04:05]} 8. O-O {[%emt 0:07:19]} a4 {[%emt 0:03:43]} 9. Kh1 {[%emt 0:05:36]} Nb6 {[%emt 0:03:13]} 10. f4 {[%emt 0:06:15]} Na5 {[%emt 1:20:06]} 11. Nd2 {[%emt 0:04:51]} g6 {[%emt 0:09:10]} 12. dxc5 {[%emt 0:21:38]} Bxc5 {[%emt 0:03:11]} 13. b4 {[%emt 0:51:02]} axb3 {[%emt 0:02:13]} 14. Nxb3 {[%emt 0:00:54]} Nxb3 {[%emt 1:03:02]} 15. Qxb3 {[%emt 0:01:35]} Bd7 {[%emt 0:03:34]} 16. Nd4 {[%emt 0:01:53]} O-O {[%emt 0:15:06]} 17. Be3 {[%emt 0:03:53]} Qe7 {[%emt 0:01:59]} 18. Bg1 {[%emt 0:09:50]} Ra7 {[%emt 0:05:12]} *

[Event "XX Gran Hotel Bali-A 2023"]
[Site "Benidorm"]
[Date "2023.12.08"]
[Round "9.1"]
[White "Grigoryan, Karen H."]
[Black "Mitrabha, Guha"]
[Result "1/2-1/2"]
[ECO "E36"]
[WhiteElo "2638"]
[BlackElo "2508"]
[Annotator "TA"]
[PlyCount "85"]
[EventDate "2023.12.02"]
[EventType "swiss"]
[EventCountry "ESP"]
[SourceTitle "playchess.com"]
[Source "ChessBase"]
[SourceQuality "1"]
[TimeControl "5400+30"]

{[%evp 11,85,0,5,0,6,8,20,0,5,-10,-14,-15,-13,-47,-39,-100,-25,-35,-29,-40,-32,-102,-106,-118,-6,-15,0,0,-10,0,0,-6,0,0,0,7,23,20,22,5,5,4,4,6,6,6,20,14,103,84,106,100,97,79,262,77,67,10,25,0,0,0,0,0,0,0,0,0,0,0,0,0,0,0,0,0]} 1. d4 {[%emt 0:04:13]} Nf6 {[%emt 0:03:06]} 2. c4 {[%emt 0:00:41]} e6 {[%emt 0:00:17]} 3. Nc3 {[%emt 0:00:31]} Bb4 {[%emt 0:00:07]} 4. Qc2 {[%emt 0:00:27]} O-O {[%emt 0:00:08]} 5. a3 {[%emt 0:00:07]} Bxc3+ {[%emt 0:00:06]} 6. Qxc3 {[%emt 0:00:05]} d5 {[%emt 0:00:06]} 7. e3 {[%emt 0:02:01] E36: Nimzo-Indian: Classical: 4...d5 5 a3.} b6 {[%emt 0:04:58]} 8. Nf3 {[%emt 0:00:20]} Ba6 {[%emt 0:00:40]} 9. b3 {[%emt 0:01:39]} Nbd7 {[%emt 0:00:08]} 10. Bb2 {[%emt 0:04:12]} c5 {[%emt 0:02:52]} 11. dxc5 {[%emt 0:00:54]} Nxc5 {[%emt 0:00:10]} 12. Rd1 {[%emt 0:02:48] [#]} Rc8 $146 {[%emt 0:01:55]} ({Predecessor:} 12... Nce4 13. Qc1 Rc8 14. Be2 Qe7 15. O-O dxc4 16. bxc4 b5 17. Qa1 bxc4 18. Ne5 Qc7 {½-½ Garcia De la Calera Molina,E (1634)-Krasteva,B (2268) Paterna Chess in a Rook 3rd blitz 2022 (3)}) 13. Qb4 {[%emt 0:05:46]} (13. Be2 $15) 13... Nce4 {[%emt 0:29:10] Excellent horsemanship.} ({Black should play} 13... Nfe4 $17 {[%cal Oa6c4] Threatens to win with ...Bxc4!} 14. cxd5 Bxf1 15. Kxf1 exd5) 14. Ne5 {[%emt 0:12:02]} Qc7 {[%emt 0:07:10]} 15. f3 {[%emt 0:20:43]} Nc5 {[%emt 0:06:41]} 16. Qc3 {[%emt 0:04:58]} (16. Nd3 $15) 16... dxc4 $17 {[%emt 0:05:11]} 17. Ng4 {[%emt 0:06:08]} Ne8 {[%emt 0:00:37]} (17... cxb3 $2 18. Nxf6+ Kh8 19. Nd5 $18) (17... Rfd8 $17 {Strongly threatening ...Rxd1+.} 18. Nxf6+ (18. Bxc4 $2 {is the wrong capture.} Rxd1+ 19. Kxd1 Nxb3 $19 {[%mdl 64] Pin}) 18... gxf6 19. Rxd8+ (19. bxc4 Rxd1+ 20. Kxd1 e5 $17) 19... Qxd8 20. bxc4 Na4 21. Qxf6 Nxb2 22. Qxb2 Bxc4 23. Bxc4 Qh4+ 24. Ke2 Qxc4+ 25. Kf2 Qc2+ 26. Qxc2 Rxc2+ 27. Kg3 Ra2) 18. Bxc4 $11 {[%emt 0:01:08]} h5 {[%emt 0:12:31]} (18... Bxc4 {simplifies} 19. Qxc4 h5 20. Nf2 Nd6) 19. Bxa6 $1 {[%emt 0:12:16]} Nxa6 {[%emt 0:01:13]} 20. Qxc7 {[%emt 0:00:07]} Nexc7 {[%emt 0:02:15]} 21. Ne5 {[%emt 0:00:19]} Nc5 {[%emt 0:00:11]} 22. Nd7 {[%emt 0:01:59]} Nxd7 {[%emt 0:00:17]} 23. Rxd7 {[%emt 0:00:06]} Nd5 {[%emt 0:00:29]} 24. Kd2 {[%emt 0:01:16] Inhibits Rc2+.} Rfd8 {[%emt 0:00:43]} 25. Rxd8+ {[%emt 0:00:08]} Rxd8 {[%emt 0:00:00][%mdl 4096] Endgame KRB-KRN} 26. Ke2 {[%emt 0:00:23]} Rc8 {[%emt 0:01:53]} 27. Rc1 {[%emt 0:00:35] Wards off Rc2+} Rxc1 {[%emt 0:01:19]} 28. Bxc1 {[%emt 0:00:05] KB-KN} Kf8 {[%emt 0:00:17]} 29. e4 {[%emt 0:00:12]} Nc7 {[%emt 0:01:24]} (29... Ne7 $11) 30. Bf4 $16 {[%emt 0:04:28]} Nb5 {[%emt 0:01:39][%cal Of8e7]} 31. Kd3 {[%emt 0:02:05] a4 is the strong threat.} Ke7 {[%emt 0:00:06] [#]} 32. Bb8 $1 {[%emt 0:02:52]} a6 $2 {[%emt 0:01:09] [#]} (32... Kd7 $16) 33. a4 $2 {[%emt 0:00:08]} (33. e5 $1 $18 {is the precise move to win.}) 33... Nd6 {[%emt 0:00:05]} 34. Bc7 {[%emt 0:00:44]} (34. Kd4 $1 $14) 34... Nc8 $11 {[%emt 0:00:05]} 35. g4 {[%emt 0:00:39]} hxg4 {[%emt 0:02:49] The position is equal.} (35... Kd7 $5 {[%cal Rd7c7]} 36. Bf4 hxg4 $11) 36. fxg4 {[%emt 0:00:05]} f6 {[%emt 0:00:06]} 37. Bg3 {[%emt 0:01:25]} g5 {[%emt 0:05:40]} 38. h4 {[%emt 0:00:59]} gxh4 {[%emt 0:00:08]} 39. Bxh4 {[%emt 0:00:05] e5 would be deadly.} e5 {[%emt 0:00:31]} 40. g5 {[%emt 0:00:12]} fxg5 {[%emt 0:00:05]} 41. Bxg5+ {[%emt 0:00:04]} Ke6 {[%emt 0:00:14]} 42. Be3 {[%emt 0:00:35]} Kd6 {[%emt 0:01:09]} 43. Bf2 {[%emt 0:00:44] Weighted Error Value: White=0.18 (very precise) /Black=0.21 (precise)} 1/2-1/2

[Event "XX Gran Hotel Bali-A 2023"]
[Site "Benidorm"]
[Date "2023.12.08"]
[Round "9.2"]
[White "Domingo Nunez, Ruben"]
[Black "Zanan, Evgeny"]
[Result "1/2-1/2"]
[ECO "D02"]
[WhiteElo "2429"]
[BlackElo "2483"]
[Annotator "RC"]
[PlyCount "29"]
[EventDate "2023.12.02"]
[EventType "swiss"]
[EventCountry "ESP"]
[SourceTitle "playchess.com"]
[Source "ChessBase"]
[SourceQuality "1"]
[TimeControl "5400+30"]

1. Nf3 {[%emt 0:00:10]} d5 {[%emt 0:12:48]} 2. g3 {[%emt 0:00:10]} g6 {[%emt 0:00:36]} 3. Bg2 {[%emt 0:00:05]} Bg7 {[%emt 0:00:13]} 4. d4 {[%emt 0:00:04]} Nd7 {[%emt 0:03:01]} 5. O-O {[%emt 0:05:17]} Ngf6 {[%emt 0:06:56]} 6. c3 {[%emt 0:07:30]} O-O {[%emt 0:01:06]} 7. a4 {[%emt 0:03:15]} a5 {[%emt 0:02:13]} 8. Nbd2 {[%emt 0:08:50]} c6 {[%emt 0:13:29]} 9. Re1 {[%emt 0:03:53]} e5 {[%emt 0:19:49]} 10. Nxe5 {[%emt 0:33:31]} Nxe5 {[%emt 0:01:23]} 11. dxe5 {[%emt 0:00:04]} Ng4 {[%emt 0:00:35]} 12. Nf3 {[%emt 0:00:10]} Nxe5 {[%emt 0:01:34]} 13. Nxe5 {[%emt 0:00:26]} Bxe5 {[%emt 0:00:07]} 14. Qb3 {[%emt 0:03:48]} Qc7 {[%emt 0:02:21]} 15. e4 {[%emt 0:05:52]} 1/2-1/2

[Event "XX Gran Hotel Bali-A 2023"]
[Site "Benidorm"]
[Date "2023.12.08"]
[Round "9.3"]
[White "Solodovnichenko, Yuri"]
[Black "Iglesias Ferreira, Andres"]
[Result "1-0"]
[ECO "B52"]
[WhiteElo "2486"]
[BlackElo "2213"]
[Annotator "RC"]
[PlyCount "49"]
[EventDate "2023.12.02"]
[EventType "swiss"]
[EventCountry "ESP"]
[SourceTitle "playchess.com"]
[Source "ChessBase"]
[SourceQuality "1"]
[TimeControl "5400+30"]

1. e4 {[%emt 0:02:30]} c5 {[%emt 0:00:09]} 2. Nf3 {[%emt 0:00:05]} d6 {[%emt 0:00:24]} 3. Bb5+ {[%emt 0:00:19]} Bd7 {[%emt 0:00:19]} 4. Bxd7+ {[%emt 0:00:08]} Qxd7 {[%emt 0:00:09]} 5. c4 {[%emt 0:00:05]} e5 {[%emt 0:00:15]} 6. Nc3 {[%emt 0:00:12]} Nc6 {[%emt 0:00:09]} 7. a3 {[%emt 0:00:09]} Be7 {[%emt 0:00:53]} 8. d3 {[%emt 0:04:07]} Bd8 {[%emt 0:01:39]} 9. O-O {[%emt 0:03:55]} Nge7 {[%emt 0:00:59]} 10. Rb1 {[%emt 0:10:32]} O-O {[%emt 0:00:50]} 11. b4 {[%emt 0:00:42]} Ng6 {[%emt 0:00:25]} 12. bxc5 {[%emt 0:02:58]} dxc5 {[%emt 0:00:10]} 13. Nd5 {[%emt 0:00:28]} b6 {[%emt 0:05:06]} 14. Bd2 {[%emt 0:06:29]} f5 {[%emt 0:05:15]} 15. h3 {[%emt 0:03:52]} Nce7 {[%emt 0:15:21]} 16. a4 {[%emt 0:03:18]} Nxd5 {[%emt 0:00:27]} 17. cxd5 {[%emt 0:00:16]} Rc8 {[%emt 0:03:02]} 18. Re1 {[%emt 0:11:12]} c4 {[%emt 0:05:45]} 19. Rc1 {[%emt 0:03:02]} cxd3 {[%emt 0:02:37]} 20. Rxc8 {[%emt 0:00:04]} Qxc8 {[%emt 0:00:11]} 21. Bb4 {[%emt 0:00:21]} fxe4 {[%emt 0:11:31]} 22. Bxf8 {[%emt 0:11:21]} exf3 {[%emt 0:00:12]} 23. Bd6 {[%emt 0:00:31]} Nh4 {[%emt 0:27:33]} 24. Qxd3 {[%emt 0:03:03]} Nxg2 {[%emt 0:01:00]} 25. Qxf3 {[%emt 0:00:12]} 1-0

[Event "XX Gran Hotel Bali-A 2023"]
[Site "Benidorm"]
[Date "2023.12.08"]
[Round "9.4"]
[White "Munoz Avila, Jose Luis"]
[Black "Ilinca, Felix-Antonio"]
[Result "1-0"]
[ECO "A57"]
[WhiteElo "2238"]
[BlackElo "2423"]
[Annotator "RC"]
[PlyCount "77"]
[EventDate "2023.12.02"]
[EventType "swiss"]
[EventCountry "ESP"]
[SourceTitle "playchess.com"]
[Source "ChessBase"]
[SourceQuality "1"]
[TimeControl "5400+30"]

1. d4 {[%emt 0:00:03]} Nf6 {[%emt 0:00:57]} 2. c4 {[%emt 0:00:08]} c5 {[%emt 0:00:41]} 3. d5 {[%emt 0:01:36]} b5 {[%emt 0:00:16]} 4. Qc2 {[%emt 0:00:15]} b4 {[%emt 0:00:29]} 5. e4 {[%emt 0:14:33]} d6 {[%emt 0:00:39]} 6. f4 {[%emt 0:00:59]} g6 {[%emt 0:01:32]} 7. Bd3 {[%emt 0:05:13]} Bg7 {[%emt 0:02:15]} 8. Nd2 {[%emt 0:01:17]} O-O {[%emt 0:02:46]} 9. Ndf3 {[%emt 0:01:13]} a5 {[%emt 0:09:01]} 10. Rb1 {[%emt 0:03:35]} e6 {[%emt 0:06:33]} 11. Ne2 {[%emt 0:03:35]} exd5 {[%emt 0:00:52]} 12. exd5 {[%emt 0:00:12]} Re8 {[%emt 0:04:37]} 13. h3 {[%emt 0:00:36]} Ne4 {[%emt 0:05:37]} 14. O-O {[%emt 0:16:05]} a4 {[%emt 0:05:14]} 15. Bxe4 {[%emt 0:13:49]} Rxe4 {[%emt 0:01:01]} 16. g4 {[%emt 0:00:10]} Re8 {[%emt 0:05:09]} 17. Ng3 {[%emt 0:05:00]} Nd7 {[%emt 0:04:37]} 18. Bd2 {[%emt 0:01:55]} a3 {[%emt 0:05:17]} 19. b3 {[%emt 0:01:00]} Ra7 {[%emt 0:02:09]} 20. Rbe1 {[%emt 0:03:38]} Rxe1 {[%emt 0:17:49]} 21. Rxe1 {[%emt 0:00:30]} Nf6 {[%emt 0:00:29]} 22. g5 {[%emt 0:06:14]} Nh5 {[%emt 0:01:17]} 23. Nxh5 {[%emt 0:00:28]} Bf5 {[%emt 0:00:38]} 24. Qd1 {[%emt 0:01:08]} gxh5 {[%emt 0:00:12]} 25. Nh4 {[%emt 0:00:34]} Bxh3 {[%emt 0:01:19]} 26. Qxh5 {[%emt 0:00:47]} Qd7 {[%emt 0:02:51]} 27. f5 {[%emt 0:04:57]} Bc3 {[%emt 0:10:57]} 28. Bxc3 {[%emt 0:04:01]} bxc3 {[%emt 0:00:04]} 29. Qf3 {[%emt 0:01:44]} c2 {[%emt 0:00:20]} 30. Qxh3 {[%emt 0:03:12]} Qe7 {[%emt 0:00:04]} 31. Rc1 {[%emt 0:00:12]} Qe2 {[%emt 0:00:57]} 32. f6 {[%emt 0:01:22]} Qd1+ {[%emt 0:01:37]} 33. Kh2 {[%emt 0:00:33]} Ra8 {[%emt 0:01:56]} 34. Qe3 {[%emt 0:00:09]} Kf8 {[%emt 0:00:10]} 35. Nf5 {[%emt 0:00:46]} Re8 {[%emt 0:07:38]} 36. Ne7 {[%emt 0:00:32]} Qh5+ {[%emt 0:00:00]} 37. Kg3 {[%emt 0:00:10]} Qd1 {[%emt 0:00:00]} 38. g6 {[%emt 0:00:43]} fxg6 {[%emt 0:00:00]} 39. Qh6+ {[%emt 0:00:10]} 1-0